[Event "2025 Chess.com Botwinnik Rapid toernooi"]
[Site "Zoetermeer, Netherlands"]
[Date "????.??.??"]
[Round "2.6"]
[White "Wiersma, Camiel"]
[Black "Smeets, Kobe"]
[Result "0-1"]
[TimeControl "15+5"]
[BlackTitle "FM"]
[WhiteFideId "8696897"]
[BlackFideId "8659420"]
[WhiteElo "2030"]
[BlackElo "2364"]

1. e4 {[%clk 00:15:07]} {[%emt 00:00:02]} e5 {[%clk 00:15:05]} {[%emt
00:00:05]} 2. Bc4 {[%clk 00:15:10]} {[%emt 00:00:03]} Nf6 {[%clk 00:15:07]}
{[%emt 00:00:03]} 3. Nc3 {[%clk 00:15:14]} {[%emt 00:00:01]} Bc5 {[%clk
00:15:10]} {[%emt 00:00:03]} 4. d3 {[%clk 00:15:17]} {[%emt 00:00:02]} c6
{[%clk 00:15:09]} {[%emt 00:00:05]} 5. Bg5 {[%clk 00:15:08]} {[%emt 00:00:13]}
h6 {[%clk 00:15:12]} {[%emt 00:00:02]} 6. Bxf6 {[%clk 00:14:53]} {[%emt
00:00:20]} Qxf6 {[%clk 00:15:16]} {[%emt 00:00:02]} 7. Nf3 {[%clk 00:14:56]}
{[%emt 00:00:02]} d6 {[%clk 00:15:10]} {[%emt 00:00:12]} 8. h3 {[%clk
00:11:07]} {[%emt 00:03:53]} a5 {[%clk 00:15:01]} {[%emt 00:00:14]} 9. a4
{[%emt 00:00:28]} g5 {[%clk 00:15:04]} 10. Qd2 {[%clk 00:10:00]} {[%emt
00:00:51]} Nd7 {[%clk 00:14:30]} {[%emt 00:00:39]} 11. O-O-O {[%clk 00:09:04]}
{[%emt 00:01:00]} Bb4 {[%clk 00:14:13]} {[%emt 00:00:23]} 12. d4 {[%clk
00:08:32]} {[%emt 00:00:37]} exd4 {[%clk 00:13:52]} {[%emt 00:00:26]} 13. Qxd4
{[%clk 00:07:32]} {[%emt 00:01:05]} Qxd4 {[%clk 00:11:39]} {[%emt 00:02:18]} 14.
Rxd4 {[%clk 00:07:24]} {[%emt 00:00:13]} Ke7 {[%clk 00:09:15]} {[%emt
00:02:28]} 15. Rhd1 {[%clk 00:07:02]} {[%emt 00:00:27]} Rd8 {[%clk 00:09:19]}
{[%emt 00:00:01]} 16. R4d2 {[%clk 00:00:29]} {[%emt 00:06:38]} Nc5 {[%clk
00:09:06]} {[%emt 00:00:19]} 17. Re2 {[%clk 00:00:23]} {[%emt 00:00:10]} Bxc3
{[%clk 00:08:56]} {[%emt 00:00:15]} 18. bxc3 {[%clk 00:00:27]} Nxa4 {[%clk
00:09:00]} {[%emt 00:00:02]} 19. Kd2 {[%clk 00:00:07]} {[%emt 00:00:25]} Nb2
{[%clk 00:09:01]} {[%emt 00:00:04]} 0-1

[Event "2025 Chess.com Botwinnik Rapid toernooi"]
[Site "Zoetermeer, Netherlands"]
[Date "????.??.??"]
[Round "2.7"]
[White "Witte, Phoebe"]
[Black "Wagner, Andr"]
[Result "0-1"]
[TimeControl "15+5"]
[WhiteFideId "8956794"]
[BlackFideId "7460365"]
[WhiteElo "1615"]
[BlackElo "1802"]

1. e4 {[%clk 00:15:06]} {[%emt 00:00:03]} e5 {[%clk 00:15:08]} {[%emt
00:00:02]} 2. Nf3 {[%clk 00:15:08]} {[%emt 00:00:03]} Nc6 {[%clk 00:15:11]}
{[%emt 00:00:02]} 3. Bb5 {[%clk 00:15:11]} {[%emt 00:00:02]} a6 {[%clk
00:15:15]} {[%emt 00:00:02]} 4. Ba4 {[%clk 00:15:14]} {[%emt 00:00:01]} Nf6
{[%clk 00:15:17]} {[%emt 00:00:02]} 5. d3 {[%clk 00:15:17]} {[%emt 00:00:02]}
b5 {[%clk 00:15:15]} {[%emt 00:00:07]} 6. Bb3 {[%clk 00:15:21]} {[%emt
00:00:01]} d6 {[%clk 00:15:12]} {[%emt 00:00:08]} 7. h3 {[%clk 00:15:24]}
{[%emt 00:00:02]} Be7 {[%clk 00:15:08]} {[%emt 00:00:09]} 8. c3 {[%clk
00:15:27]} {[%emt 00:00:02]} O-O {[%clk 00:14:57]} {[%emt 00:00:16]} 9. O-O
{[%clk 00:15:29]} {[%emt 00:00:03]} Na5 {[%clk 00:14:54]} {[%emt 00:00:08]} 10.
Bc2 {[%clk 00:15:33]} {[%emt 00:00:02]} c5 {[%clk 00:14:49]} {[%emt 00:00:11]}
11. Nbd2 {[%clk 00:15:26]} {[%emt 00:00:11]} Nc6 {[%clk 00:14:42]} {[%emt
00:00:12]} 12. Re1 {[%clk 00:15:24]} {[%emt 00:00:07]} b4 {[%clk 00:13:52]}
{[%emt 00:00:55]} 13. Nf1 {[%clk 00:15:17]} {[%emt 00:00:11]} Re8 {[%clk
00:13:40]} {[%emt 00:00:17]} 14. Ng3 {[%clk 00:15:10]} {[%emt 00:00:13]} Bf8
{[%clk 00:13:34]} {[%emt 00:00:11]} 15. d4 {[%clk 00:12:53]} {[%emt 00:02:22]}
Qc7 {[%clk 00:11:36]} {[%emt 00:02:03]} 16. Be3 {[%clk 00:11:01]} {[%emt
00:01:56]} c4 {[%clk 00:11:13]} {[%emt 00:00:29]} 17. Bg5 {[%clk 00:09:29]}
{[%emt 00:01:36]} Be7 {[%clk 00:10:25]} {[%emt 00:00:53]} 18. Nf5 {[%clk
00:08:12]} {[%emt 00:01:22]} Bxf5 {[%clk 00:08:55]} {[%emt 00:01:35]} 19. exf5
{[%clk 00:08:14]} {[%emt 00:00:03]} exd4 {[%clk 00:08:33]} {[%emt 00:00:28]} 20.
Nxd4 {[%emt 00:01:19]} h6 {[%clk 00:07:36]} {[%emt 00:01:00]} 21. Bh4 {[%clk
00:06:04]} {[%emt 00:01:03]} bxc3 {[%clk 00:07:31]} {[%emt 00:00:10]} 22. bxc3
{[%clk 00:05:53]} {[%emt 00:00:16]} Nd5 {[%clk 00:06:35]} {[%emt 00:01:01]} 23.
Bxe7 {[%clk 00:04:17]} {[%emt 00:01:41]} Ncxe7 {[%clk 00:06:17]} {[%emt
00:00:22]} 24. Qf3 {[%clk 00:03:10]} {[%emt 00:01:12]} Qa5 {[%clk 00:05:08]}
{[%emt 00:01:15]} 25. Qg3 {[%clk 00:01:15]} {[%emt 00:02:00]} Qxc3 {[%clk
00:04:53]} {[%emt 00:00:21]} 26. Qxc3 {[%clk 00:00:34]} {[%emt 00:00:46]} Nxc3
{[%clk 00:04:53]} {[%emt 00:00:04]} 27. Rac1 {[%clk 00:00:20]} {[%emt
00:00:19]} Nxa2 {[%clk 00:03:51]} {[%emt 00:01:08]} 28. Rb1 {[%clk 00:00:00]}
{[%emt 00:00:22]} 0-1

[Event "2025 Chess.com Botwinnik Rapid toernooi"]
[Site "Zoetermeer, Netherlands"]
[Date "????.??.??"]
[Round "2.8"]
[White "Overmeer, Henk"]
[Black "Tjin a Lien, Jie-Ren"]
[Result "0-1"]
[TimeControl "15+5"]
[WhiteFideId "7058007"]
[BlackFideId "8636155"]
[WhiteElo "1717"]
[BlackElo "1846"]

1. d4 {[%clk 00:15:05]} {[%emt 00:00:03]} Nf6 {[%clk 00:15:06]} {[%emt
00:00:04]} 2. Nf3 {[%clk 00:15:05]} {[%emt 00:00:06]} b6 {[%clk 00:14:37]}
{[%emt 00:00:34]} 3. Bf4 {[%clk 00:14:57]} {[%emt 00:00:12]} Bb7 {[%clk
00:14:37]} {[%emt 00:00:06]} 4. e3 {[%clk 00:15:00]} {[%emt 00:00:02]} d6
{[%clk 00:14:21]} {[%emt 00:00:21]} 5. Be2 {[%clk 00:14:19]} {[%emt 00:00:46]}
g6 {[%clk 00:13:42]} {[%emt 00:00:45]} 6. h3 {[%clk 00:14:19]} {[%emt
00:00:04]} Bg7 {[%clk 00:13:44]} {[%emt 00:00:03]} 7. c4 {[%clk 00:14:16]}
{[%emt 00:00:08]} O-O {[%clk 00:12:14]} {[%emt 00:01:35]} 8. Nc3 {[%clk
00:14:11]} {[%emt 00:00:10]} d5 {[%clk 00:12:13]} {[%emt 00:00:06]} 9. cxd5
{[%clk 00:13:33]} {[%emt 00:00:44]} Nxd5 {[%clk 00:12:14]} {[%emt 00:00:04]} 10.
Nxd5 {[%clk 00:13:33]} {[%emt 00:00:05]} Qxd5 {[%clk 00:11:40]} {[%emt
00:00:38]} 11. O-O {[%clk 00:13:09]} {[%emt 00:00:28]} c6 {[%clk 00:09:51]}
{[%emt 00:01:55]} 12. b3 {[%clk 00:10:35]} {[%emt 00:02:39]} b5 {[%emt
00:00:16]} 13. Rc1 {[%clk 00:10:32]} Nd7 {[%clk 00:08:31]} {[%emt 00:01:21]} 14.
Nd2 {[%clk 00:09:48]} {[%emt 00:00:50]} e5 {[%clk 00:07:54]} {[%emt 00:00:42]}
15. Bf3 {[%clk 00:09:41]} {[%emt 00:00:11]} Qe6 {[%clk 00:07:54]} {[%emt
00:00:06]} 16. dxe5 {[%clk 00:09:07]} {[%emt 00:00:40]} Nxe5 {[%clk 00:07:46]}
{[%emt 00:00:13]} 17. Bxe5 {[%clk 00:08:34]} {[%emt 00:00:37]} Bxe5 {[%clk
00:07:21]} {[%emt 00:00:30]} 18. Ne4 {[%clk 00:07:38]} {[%emt 00:01:01]} Qe7
{[%clk 00:05:10]} {[%emt 00:02:16]} 19. Nc5 {[%emt 00:00:24]} Rfd8 {[%clk
00:04:48]} {[%emt 00:00:25]} 20. Qc2 {[%clk 00:07:12]} {[%emt 00:00:13]} Rac8
{[%clk 00:03:44]} {[%emt 00:01:10]} 21. Kh1 {[%clk 00:07:11]} {[%emt 00:00:05]}
Ba8 {[%clk 00:03:33]} {[%emt 00:00:17]} 22. b4 {[%clk 00:07:04]} {[%emt
00:00:11]} h5 {[%clk 00:02:20]} {[%emt 00:01:18]} 23. a3 {[%clk 00:07:08]}
{[%emt 00:00:02]} Qf6 {[%clk 00:01:53]} {[%emt 00:00:32]} 24. Rcd1 {[%clk
00:06:45]} {[%emt 00:00:27]} Kh8 {[%clk 00:01:22]} {[%emt 00:00:37]} 25. Nd7
{[%clk 00:06:31]} {[%emt 00:00:18]} Qe6 {[%clk 00:00:53]} {[%emt 00:00:36]} 26.
Nxe5 {[%clk 00:06:21]} {[%emt 00:00:14]} Qxe5 {[%clk 00:00:56]} {[%emt
00:00:02]} 27. Rxd8+ {[%clk 00:05:12]} {[%emt 00:01:15]} Rxd8 {[%clk 00:01:00]}
{[%emt 00:00:01]} 28. Rd1 {[%clk 00:03:25]} {[%emt 00:01:51]} Rc8 {[%clk
00:00:41]} {[%emt 00:00:24]} 29. Qc5 {[%clk 00:01:38]} {[%emt 00:01:52]} Qe6
{[%clk 00:00:35]} {[%emt 00:00:12]} 30. Rd6 {[%clk 00:01:26]} {[%emt 00:00:17]}
Qe8 {[%clk 00:00:25]} {[%emt 00:00:14]} 31. Qc3+ {[%clk 00:01:12]} {[%emt
00:00:18]} Kh7 {[%clk 00:00:21]} {[%emt 00:00:10]} 32. h4 {[%clk 00:00:54]}
{[%emt 00:00:22]} Qe7 {[%clk 00:00:24]} {[%emt 00:00:04]} 33. Rf6 {[%clk
00:00:42]} {[%emt 00:00:16]} c5 {[%clk 00:00:17]} {[%emt 00:00:12]} 34. Bxa8
{[%clk 00:00:21]} {[%emt 00:00:26]} Rxa8 {[%clk 00:00:21]} {[%emt 00:00:01]} 35.
g3 {[%clk 00:00:06]} {[%emt 00:00:19]} Rc8 {[%clk 00:00:24]} {[%emt 00:00:03]}
36. Qb2 {[%clk 00:00:00]} {[%emt 00:00:15]} c4 {[%clk 00:00:24]} {[%emt
00:00:04]} 37. Qd4 {[%emt 00:00:33]} 0-1

[Event "2025 Chess.com Botwinnik Rapid toernooi"]
[Site "Zoetermeer, Netherlands"]
[Date "????.??.??"]
[Round "3.1"]
[White "Lai, Hing Ting"]
[Black "Grooten, Herman"]
[Result "1-0"]
[TimeControl "15+5"]
[WhiteTitle "IM"]
[BlackTitle "IM"]
[WhiteFideId "8324987"]
[BlackFideId "7375115"]
[WhiteElo "2484"]
[BlackElo "2157"]

1. d4 {[%emt 00:14:16]} Nf6 {[%emt 00:00:01]} 2. Nf3 {[%emt 00:00:02]} e6
{[%emt 00:00:02]} 3. Bf4 {[%emt 00:00:06]} b6 4. c4 {[%emt 00:00:08]} Bb7
{[%emt 00:00:03]} 5. e3 {[%emt 00:00:02]} Ne4 {[%emt 00:00:34]} 6. Bd3 {[%emt
00:00:30]} f5 {[%emt 00:00:03]} 7. O-O {[%emt 00:00:12]} Be7 {[%emt 00:00:02]}
8. Nbd2 {[%emt 00:01:29]} O-O {[%emt 00:01:31]} 9. h3 {[%emt 00:00:31]} d6
{[%emt 00:00:18]} 10. Qc2 {[%emt 00:00:24]} Nxd2 {[%emt 00:00:13]} 11. Nxd2
{[%emt 00:00:03]} Nd7 {[%emt 00:00:10]} 12. Bh2 {[%emt 00:00:11]} Qe8 {[%emt
00:00:27]} 13. f3 {[%emt 00:01:45]} Qh5 {[%emt 00:00:58]} 14. Rae1 {[%emt
00:00:32]} e5 {[%emt 00:00:56]} 15. d5 {[%emt 00:01:57]} a5 {[%emt 00:00:43]}
16. f4 {[%emt 00:00:17]} e4 {[%emt 00:00:45]} 17. Be2 {[%emt 00:00:01]} Qh6
{[%emt 00:00:18]} 18. Rf2 {[%emt 00:00:38]} Bc8 {[%emt 00:01:03]} 19. Nb1
{[%emt 00:00:11]} Nc5 {[%emt 00:00:26]} 20. Nc3 {[%emt 00:00:08]} Bd7 {[%emt
00:00:02]} 21. b3 {[%emt 00:00:04]} Bf6 {[%emt 00:00:38]} 22. a3 {[%emt
00:00:39]} g6 {[%emt 00:00:16]} 23. Nb5 {[%emt 00:00:16]} Bxb5 {[%emt
00:00:42]} 24. cxb5 {[%emt 00:00:01]} Qg7 {[%emt 00:00:04]} 25. Rb1 {[%emt
00:01:01]} Rfe8 {[%emt 00:01:08]} 26. g4 {[%emt 00:00:01]} Qf7 {[%emt
00:00:05]} 27. Rg2 {[%emt 00:00:56]} Kf8 {[%emt 00:00:03]} 28. Bc4 {[%emt
00:00:20]} Bh8 {[%emt 00:00:42]} 29. Bg3 {[%emt 00:00:11]} Qf6 {[%emt
00:00:04]} 30. Be1 {[%emt 00:00:05]} Ke7 {[%emt 00:00:28]} 31. Kh2 {[%emt
00:00:12]} Kd7 {[%emt 00:00:08]} 32. b4 {[%emt 00:00:10]} axb4 {[%emt
00:00:01]} 33. axb4 {[%emt 00:00:01]} Nd3 {[%emt 00:00:50]} 34. Bxd3 {[%emt
00:00:26]} exd3 {[%emt 00:00:01]} 35. Qc6+ {[%emt 00:00:11]} Ke7 36. gxf5
{[%emt 00:01:33]} Kf8 {[%emt 00:01:09]} 37. fxg6 {[%emt 00:00:46]} Rxe3 {[%emt
00:00:26]} 38. Qxa8+ {[%emt 00:00:02]} 1-0

[Event "2025 Chess.com Botwinnik Rapid toernooi"]
[Site "Zoetermeer, Netherlands"]
[Date "????.??.??"]
[Round "3.2"]
[White "Van der Werf, Joël"]
[Black "Van der Werf, Mark"]
[Result "1/2-1/2"]
[TimeControl "15+5"]
[BlackTitle "IM"]
[WhiteFideId "8301040"]
[BlackFideId "7263685"]
[WhiteElo "2113"]
[BlackElo "2413"]

1. e4 {[%clk 00:15:08]} {[%emt 00:00:02]} e5 {[%clk 00:15:09]} {[%emt
00:00:01]} 2. Nf3 {[%clk 00:15:11]} {[%emt 00:00:01]} Nc6 {[%clk 00:15:13]}
{[%emt 00:00:01]} 3. Bb5 {[%clk 00:15:15]} {[%emt 00:00:01]} a6 {[%clk
00:15:17]} {[%emt 00:00:02]} 4. Ba4 {[%clk 00:15:19]} {[%emt 00:00:01]} Nf6
{[%clk 00:15:20]} {[%emt 00:00:02]} 5. O-O {[%clk 00:15:22]} {[%emt 00:00:02]}
Be7 {[%clk 00:15:23]} {[%emt 00:00:02]} 6. Re1 {[%clk 00:15:25]} {[%emt
00:00:02]} b5 {[%clk 00:15:27]} {[%emt 00:00:01]} 7. Bb3 {[%clk 00:15:29]}
{[%emt 00:00:01]} d6 {[%clk 00:15:30]} {[%emt 00:00:01]} 8. c3 {[%clk
00:15:27]} {[%emt 00:00:07]} O-O {[%clk 00:15:32]} {[%emt 00:00:03]} 9. h3
{[%clk 00:15:30]} {[%emt 00:00:02]} Re8 {[%clk 00:15:35]} {[%emt 00:00:02]} 10.
d4 {[%clk 00:15:30]} {[%emt 00:00:06]} Bb7 {[%clk 00:15:38]} {[%emt 00:00:02]}
11. Nbd2 {[%clk 00:15:29]} {[%emt 00:00:06]} Bf8 {[%clk 00:15:41]} {[%emt
00:00:01]} 12. a4 {[%clk 00:15:32]} {[%emt 00:00:02]} Na5 {[%clk 00:15:38]}
{[%emt 00:00:08]} 13. Bc2 {[%clk 00:15:27]} {[%emt 00:00:10]} exd4 {[%clk
00:15:14]} {[%emt 00:00:29]} 14. cxd4 {[%clk 00:15:30]} {[%emt 00:00:01]} b4
{[%clk 00:15:18]} {[%emt 00:00:01]} 15. b3 {[%clk 00:15:34]} {[%emt 00:00:01]}
g6 {[%clk 00:15:21]} {[%emt 00:00:02]} 16. Bb2 {[%clk 00:15:38]} {[%emt
00:00:01]} Bg7 {[%clk 00:15:23]} {[%emt 00:00:03]} 17. Rb1 {[%clk 00:15:42]}
{[%emt 00:00:02]} Rc8 {[%clk 00:15:19]} {[%emt 00:00:09]} 18. Bd3 {[%clk
00:14:51]} {[%emt 00:00:56]} Nh5 {[%clk 00:14:54]} {[%emt 00:00:29]} 19. g3
{[%clk 00:13:41]} {[%emt 00:01:15]} Nf6 {[%clk 00:14:31]} {[%emt 00:00:27]} 20.
d5 {[%clk 00:13:18]} {[%emt 00:00:29]} c6 {[%clk 00:13:29]} {[%emt 00:01:07]}
21. dxc6 {[%clk 00:13:18]} {[%emt 00:00:05]} Nxc6 {[%clk 00:13:31]} {[%emt
00:00:02]} 22. Rc1 {[%clk 00:11:21]} {[%emt 00:02:02]} d5 {[%clk 00:10:57]}
{[%emt 00:02:39]} 23. exd5 {[%clk 00:11:00]} {[%emt 00:00:27]} Qxd5 {[%clk
00:10:55]} {[%emt 00:00:07]} 24. Bc4 {[%clk 00:10:44]} {[%emt 00:00:21]} Qh5
{[%clk 00:10:39]} {[%emt 00:00:19]} 25. Rxe8+ {[%clk 00:10:19]} {[%emt
00:00:31]} Rxe8 {[%clk 00:10:38]} {[%emt 00:00:06]} 26. Qf1 {[%clk 00:10:23]}
{[%emt 00:00:02]} Na5 {[%clk 00:09:48]} {[%emt 00:00:54]} 27. Be2 {[%clk
00:09:30]} {[%emt 00:00:57]} Qd5 {[%clk 00:09:09]} {[%emt 00:00:44]} 28. Bxa6
{[%clk 00:08:49]} {[%emt 00:00:47]} Bxa6 {[%clk 00:05:33]} {[%emt 00:03:41]} 29.
Qxa6 {[%clk 00:08:53]} {[%emt 00:00:01]} Nxb3 {[%clk 00:05:36]} {[%emt
00:00:02]} 30. Nxb3 {[%clk 00:02:41]} {[%emt 00:06:16]} Qxb3 {[%clk 00:05:37]}
{[%emt 00:00:04]} 31. Bxf6 {[%clk 00:02:26]} {[%emt 00:00:20]} Qxf3 {[%clk
00:05:39]} {[%emt 00:00:03]} 32. Bxg7 {[%clk 00:02:28]} {[%emt 00:00:03]} Kxg7
{[%clk 00:05:20]} {[%emt 00:00:25]} 33. Qb6 {[%clk 00:01:38]} {[%emt 00:00:55]}
b3 {[%clk 00:04:36]} {[%emt 00:00:49]} 34. Qd4+ {[%clk 00:01:33]} {[%emt
00:00:10]} Kg8 {[%clk 00:04:07]} {[%emt 00:00:33]} 35. Rb1 {[%clk 00:01:18]}
{[%emt 00:00:21]} Qe4 {[%clk 00:02:59]} {[%emt 00:01:13]} 1/2-1/2